{"text_format":"1","workbook":"xlsx","n_sheets":2,"sheets":["Foglio1","Charting"],"not_rendered":{"charts":2,"images":0,"macros":1,"external_links":0,"defined_names":0,"comments":0,"pivot_tables":0},"unopened":[],"bounds":{"document_bytes":16777216,"sheet_cells":100000,"rows_first":2000,"rows_last":500,"rows_between":2000,"halvings":0,"cell_chars":16384,"cell_head_chars":4096},"cells_cut":0,"cells_raw":0,"read":"whole","date_system":"1900"}

{"sheet":"Foglio1","index":0,"n_rows":143,"n_cols":25,"rows_kept":143,"cut":false,"hidden":false,"merged":[]}
["user_Country","user_Affiliation","user_Age","user_id","date","question","subquestion","labels",0,1,2,3,4,5,6,7,8,"explanation","user_id","date","question","subquestion","labels","Level of confidence in the \\Funding priorities\\\" answer\"","explanation"]
["Germany","Fraunhofer",29,"5852c089aef2c94c3a000367","2017/3/31 12:17:40",2,2,"Funding priorities ","Addressing optimization issues","Increasing processing speed in specific applications","Enhancing machine learning","Simulating quantum systems","Having the ability to control quantum systems","Increasing energy efficiency of computing","Simulating classical complex systems","Attacking and defending data security","Other (as optionally specified in the first column)",null,"5852c089aef2c94c3a000367","2017-03-31T12:18:08",2,3,"Level of confidence ",50]
["United Kingdom","University of Sussex",45,"5852c089aef2c94c3a00036b","2017/5/4 10:42:38",2,2,"Funding priorities ","Addressing optimization issues","Increasing processing speed in specific applications","Simulating quantum systems","Enhancing machine learning","Other (as optionally specified in the first column)","Having the ability to control quantum systems","Simulating classical complex systems","Increasing energy efficiency of computing","Attacking and defending data security",null,"5852c089aef2c94c3a00036b","2017-05-04T10:42:59",2,3,"Level of confidence ",100]
["Netherlands","Atos",29,"5852c089aef2c94c3a00036d","2017/5/5 12:24:7",2,2,"Funding priorities ","Having the ability to control quantum systems","Addressing optimization issues","Increasing processing speed in specific applications","Increasing energy efficiency of computing","Simulating classical complex systems","Simulating quantum systems","Attacking and defending data security","Enhancing machine learning","Other (as optionally specified in the first column)","A lot of these have clear business-cases and will be funded regardless. Some require a longer development track- and hence should be focused on by public funding. PRIMARILY Funding should be looked at from a global strategic context. No need to fund what we cannot ever competitively win as Europe. ","5852c089aef2c94c3a00036d","2017-05-05T12:24:29",2,3,"Level of confidence ",60]
["Switzerland","IBM Zurich Research Laboratory",55,"5852c089aef2c94c3a00036f","2017/4/21 17:31:36",2,2,"Funding priorities ","Having the ability to control quantum systems","Simulating quantum systems","Increasing processing speed in specific applications","Simulating classical complex systems","Addressing optimization issues","Enhancing machine learning","Attacking and defending data security","Increasing energy efficiency of computing","Other (as optionally specified in the first column)",null,"5852c089aef2c94c3a00036f","2017-04-21T17:32:03",2,3,"Level of confidence ",80,"People will use the new technologies and create applications."]
["Italy","CNR - SPIN",47,"5852c089aef2c94c3a000373","2017/4/24 10:34:54",2,2,"Funding priorities ","Attacking and defending data security","Increasing processing speed in specific applications","Enhancing machine learning","Addressing optimization issues","Having the ability to control quantum systems","Simulating quantum systems","Simulating classical complex systems","Increasing energy efficiency of computing","Other (as optionally specified in the first column)",null,"5852c089aef2c94c3a000373","2017-04-24T10:35:11",2,3,"Level of confidence ",80]
["United Kingdom","Hitachi",null,"5852c089aef2c94c3a00037f","2017/4/21 9:4:57",2,2,"Funding priorities ","Having the ability to control quantum systems","Simulating quantum systems","Enhancing machine learning","Attacking and defending data security","Addressing optimization issues","Increasing processing speed in specific applications","Simulating classical complex systems","Increasing energy efficiency of computing","Other (as optionally specified in the first column)",null,"5852c089aef2c94c3a00037f","2017-04-21T09:05:13",2,3,"Level of confidence ",80]
["United Kingdom","University of Oxford",null,"5852c089aef2c94c3a000385","2017/5/12 15:35:57",2,2,"Funding priorities ","Addressing optimization issues","Increasing processing speed in specific applications","Simulating quantum systems","Enhancing machine learning","Simulating classical complex systems","Having the ability to control quantum systems","Attacking and defending data security","Increasing energy efficiency of computing","Other (as optionally specified in the first column)",null,"5852c089aef2c94c3a000385","2017-05-12T15:36:21",2,3,"Level of confidence ",70]
["Belgium","EDA",54,"5852c089aef2c94c3a000389","2017/5/12 8:45:27",2,2,"Funding priorities ","Attacking and defending data security","Increasing processing speed in specific applications","Simulating quantum systems","Addressing optimization issues","Having the ability to control quantum systems","Enhancing machine learning","Simulating classical complex systems","Increasing energy efficiency of computing","Other (as optionally specified in the first column)",null,"5852c089aef2c94c3a000389","2017-05-12T08:45:50",2,3,"Level of confidence ",60]
["Finland","Aalto University",36,"5852c089aef2c94c3a00038b","2017/4/19 8:53:21",2,2,"Funding priorities ","Having the ability to control quantum systems","Increasing processing speed in specific applications","Simulating quantum systems","Other (as optionally specified in the first column)","Addressing optimization issues","Increasing energy efficiency of computing","Enhancing machine learning","Attacking and defending data security","Simulating classical complex systems","Having a better control over quantum systems is the key to everything and should therefore be the main item on public funding. ","5852c089aef2c94c3a00038b","2017-04-19T08:53:41",2,3,"Level of confidence ",80]
["Germany","Karlsruhe Institute of Technology",38,"5852c089aef2c94c3a000391","2017/3/29 20:15:50",2,2,"Funding priorities ","Simulating classical complex systems","Simulating quantum systems","Addressing optimization issues","Increasing processing speed in specific applications","Having the ability to control quantum systems","Increasing energy efficiency of computing","Enhancing machine learning","Attacking and defending data security","Other (as optionally specified in the first column)",null,"5852c089aef2c94c3a000391","2017-03-29T20:16:11",2,3,"Level of confidence ",100]
["United States","Microsoft",49,"5852c140aef2c94c3a0003a3","2017/4/19 6:11:29",2,2,"Funding priorities ","Increasing processing speed in specific applications","Simulating quantum systems","Attacking and defending data security","Having the ability to control quantum systems","Enhancing machine learning","Increasing energy efficiency of computing","Addressing optimization issues","Simulating classical complex systems","Other (as optionally specified in the first column)",null,"5852c140aef2c94c3a0003a3","2017-04-19T06:11:56",2,3,"Level of confidence ",90]
["United Kingdom","Lancaster University",37,"58dbcc590e349c2a60000076","2017/3/29 15:47:15",2,2,"Funding priorities ","Simulating quantum systems","Simulating classical complex systems","Having the ability to control quantum systems","Increasing processing speed in specific applications","Addressing optimization issues","Enhancing machine learning","Attacking and defending data security","Other (as optionally specified in the first column)","Increasing energy efficiency of computing",null,"58dbcc590e349c2a60000076","2017-03-29T15:47:44",2,3,"Level of confidence ",80]
["Germany","Saarland University",49,"58dbcd4e0e349c2a60000090","2017/4/18 18:49:54",2,2,"Funding priorities ","Simulating quantum systems","Increasing processing speed in specific applications","Addressing optimization issues","Enhancing machine learning","Increasing energy efficiency of computing","Having the ability to control quantum systems","Attacking and defending data security","Simulating classical complex systems","Other (as optionally specified in the first column)",null,"58dbcd4e0e349c2a60000090","2017-04-18T18:50:21",2,3,"Level of confidence ",60]
["United States","Nokia Bell-Labs",50,"58dbce3a0e349c2a600000a3","2017/4/19 15:41:52",2,2,"Funding priorities ","Addressing optimization issues","Increasing processing speed in specific applications","Simulating quantum systems","Having the ability to control quantum systems","Attacking and defending data security","Increasing energy efficiency of computing","Simulating classical complex systems","Enhancing machine learning","Other (as optionally specified in the first column)",null,"58dbce3a0e349c2a600000a3","2017-04-19T15:42:06",2,3,"Level of confidence ",70]
["Singapore","Center for Quantum Technologies",56,"58dbce4e0e349c2a600000a9","2017/4/19 1:5:23",2,2,"Funding priorities ","Addressing optimization issues","Having the ability to control quantum systems","Simulating quantum systems","Increasing processing speed in specific applications","Increasing energy efficiency of computing","Simulating classical complex systems","Enhancing machine learning","Attacking and defending data security","Other (as optionally specified in the first column)",null,"58dbce4e0e349c2a600000a9","2017-04-19T01:05:36",2,3,"Level of confidence ",70]
["Netherlands","QuSoft/CWI/Univ of Amsterdam",50,"58dbce730e349c2a600000b5","2017/3/29 15:16:25",2,2,"Funding priorities ","Addressing optimization issues","Increasing energy efficiency of computing","Increasing processing speed in specific applications","Simulating classical complex systems","Having the ability to control quantum systems","Simulating quantum systems","Enhancing machine learning","Attacking and defending data security","Other (as optionally specified in the first column)",null,"58dbce730e349c2a600000b5","2017-03-29T15:16:39",2,3,"Level of confidence "]
["Switzerland","Zurich Instruments AG",40,"58dbcf120e349c2a600000d8","2017/3/29 15:16:56",2,2,"Funding priorities ","Simulating quantum systems","Attacking and defending data security","Addressing optimization issues","Increasing energy efficiency of computing","Increasing processing speed in specific applications","Simulating classical complex systems","Having the ability to control quantum systems","Enhancing machine learning","Other (as optionally specified in the first column)",null,"58dbcf120e349c2a600000d8","2017-03-29T15:16:59",2,3,"Level of confidence ",50]
["United States",null,null,"58dbd02b0e349c2a60000182","2017/3/29 15:45:58",2,2,"Funding priorities ","Simulating quantum systems","Addressing optimization issues","Enhancing machine learning","Increasing energy efficiency of computing","Increasing processing speed in specific applications","Having the ability to control quantum systems","Simulating classical complex systems","Attacking and defending data security","Other (as optionally specified in the first column)",null,"58dbd02b0e349c2a60000182","2017-03-29T15:46:22",2,3,"Level of confidence ",50]
["Poland","ICFO",61,"58dbd03e0e349c2a60000193","2017/4/20 11:9:53",2,2,"Funding priorities ","Addressing optimization issues","Increasing energy efficiency of computing","Increasing processing speed in specific applications","Simulating classical complex systems","Having the ability to control quantum systems","Simulating quantum systems","Enhancing machine learning","Attacking and defending data security","Other (as optionally specified in the first column)",null,"58dbd03e0e349c2a60000193","2017-04-20T11:10:11",2,3,"Level of confidence ",100]
["Netherlands","University of Groningen",46,"58dbd0cc0e349c2a600001b7","2017/3/30 8:26:24",2,2,"Funding priorities ","Having the ability to control quantum systems","Simulating classical complex systems","Simulating quantum systems","Enhancing machine learning","Addressing optimization issues","Increasing processing speed in specific applications","Increasing energy efficiency of computing","Attacking and defending data security","Other (as optionally specified in the first column)",null,"58dbd0cc0e349c2a600001b7","2017-03-30T08:26:57",2,3,"Level of confidence ",70]
["United States","University of Southern California",40,"58dbd2120e349c2a60000222","2017/3/29 17:18:1",2,2,"Funding priorities ","Simulating quantum systems","Attacking and defending data security","Addressing optimization issues","Increasing processing speed in specific applications","Having the ability to control quantum systems","Enhancing machine learning","Simulating classical complex systems","Increasing energy efficiency of computing","Other (as optionally specified in the first column)",null,"58dbd2120e349c2a60000222","2017-03-29T17:18:17",2,3,"Level of confidence ",90]
["Italy","Universita Roma Tre",38,"58dbd49f0e349c2a60000327","2017/5/5 13:52:12",2,2,"Funding priorities ","Attacking and defending data security","Addressing optimization issues","Increasing processing speed in specific applications","Increasing energy efficiency of computing","Simulating classical complex systems","Simulating quantum systems","Enhancing machine learning","Having the ability to control quantum systems","Other (as optionally specified in the first column)",null,"58dbd49f0e349c2a60000327","2017-05-05T13:52:24",2,3,"Level of confidence ",30]
["United States","Hewlett Packard Enterprise",43,"58dbdd3d0e349c2a60000570","2017/3/29 16:37:43",2,2,"Funding priorities ","Addressing optimization issues","Having the ability to control quantum systems","Simulating quantum systems","Simulating classical complex systems","Attacking and defending data security","Increasing processing speed in specific applications","Enhancing machine learning","Increasing energy efficiency of computing","Other (as optionally specified in the first column)",null,"58dbdd3d0e349c2a60000570","2017-03-29T16:37:45",2,3,"Level of confidence ",50]
["Malta","Physics",38,"58dbe0770e349c2a6000060b","2017/4/28 15:30:37",2,2,"Funding priorities ","Addressing optimization issues","Increasing energy efficiency of computing","Increasing processing speed in specific applications","Simulating classical complex systems","Having the ability to control quantum systems","Simulating quantum systems","Enhancing machine learning","Attacking and defending data security","Other (as optionally specified in the first column)",null,"58dbe0770e349c2a6000060b","2017-04-28T15:31:09",2,3,"Level of confidence ",100]
[null,"ibm",null,"58dbe2a90e349c2a60000637","2017/3/29 16:40:22",2,2,"Funding priorities ","Addressing optimization issues","Increasing energy efficiency of computing","Increasing processing speed in specific applications","Simulating classical complex systems","Having the ability to control quantum systems","Simulating quantum systems","Enhancing machine learning","Attacking and defending data security","Other (as optionally specified in the first column)",null,"58dbe2a90e349c2a60000637","2017-03-29T16:40:41",2,3,"Level of confidence "]
["United States","Boston University- Dept. of ECE",58,"58dbe4610e349c2a600006e6","2017/3/31 14:48:14",2,2,"Funding priorities ","Simulating quantum systems","Enhancing machine learning","Simulating classical complex systems","Addressing optimization issues","Having the ability to control quantum systems","Attacking and defending data security","Increasing processing speed in specific applications","Increasing energy efficiency of computing","Other (as optionally specified in the first column)",null,"58dbe4610e349c2a600006e6","2017-03-31T14:48:20",2,3,"Level of confidence ",90]
["United States",null,45,"58dbec9f0e349c2a600007ec","2017/5/7 5:13:23",2,2,"Funding priorities ","Attacking and defending data security","Increasing processing speed in specific applications","Enhancing machine learning","Simulating quantum systems","Addressing optimization issues","Simulating classical complex systems","Increasing energy efficiency of computing","Having the ability to control quantum systems","Other (as optionally specified in the first column)",null,"58dbec9f0e349c2a600007ec","2017-05-07T05:13:33",2,3,"Level of confidence ",60]
["Russian Federation","Kazan Federal University- professor",63,"58dbfaea0e349c2a60000871","2017/4/23 19:29:1",2,2,"Funding priorities ","Attacking and defending data security","Increasing processing speed in specific applications","Simulating quantum systems","Increasing energy efficiency of computing","Simulating classical complex systems","Having the ability to control quantum systems","Enhancing machine learning","Other (as optionally specified in the first column)","Addressing optimization issues",null,"58dbfaea0e349c2a60000871","2017-04-23T19:29:23",2,3,"Level of confidence ",30]
["United States","Microsoft",59,"58dc04140e349c2a6000090f","2017/3/30 3:14:37",2,2,"Funding priorities ","Addressing optimization issues","Increasing processing speed in specific applications","Simulating quantum systems","Enhancing machine learning","Having the ability to control quantum systems","Attacking and defending data security","Simulating classical complex systems","Increasing energy efficiency of computing","Other (as optionally specified in the first column)",null,"58dc04140e349c2a6000090f","2017-03-30T03:15:00",2,3,"Level of confidence ",80]
["Switzerland","University of Basel ",59,"58dc0be70e349c2a6000094d","2017/3/31 16:34:4",2,2,"Funding priorities ","Having the ability to control quantum systems","Increasing processing speed in specific applications","Simulating quantum systems","Addressing optimization issues","Simulating classical complex systems","Increasing energy efficiency of computing","Enhancing machine learning","Attacking and defending data security","Other (as optionally specified in the first column)",null,"58dc0be70e349c2a6000094d","2017-03-31T16:34:25",2,3,"Level of confidence ",80]
["France","CNRS - PCQC",39,"58dc0c680e349c2a60000954","2017/3/29 19:59:2",2,2,"Funding priorities ","Attacking and defending data security","Enhancing machine learning","Addressing optimization issues","Increasing processing speed in specific applications","Simulating quantum systems","Having the ability to control quantum systems","Simulating classical complex systems","Increasing energy efficiency of computing","Other (as optionally specified in the first column)",null,"58dc0c680e349c2a60000954","2017-03-29T19:59:23",2,3,"Level of confidence ",90]
["Canada","D-Wave Systems Inc.",50,"58dc152d0e349c2a60000a48","2017/3/29 20:36:8",2,2,"Funding priorities ","Enhancing machine learning","Increasing processing speed in specific applications","Addressing optimization issues","Increasing energy efficiency of computing","Simulating quantum systems","Attacking and defending data security","Simulating classical complex systems","Having the ability to control quantum systems","Other (as optionally specified in the first column)",null,"58dc152d0e349c2a60000a48","2017-03-29T20:36:30",2,3,"Level of confidence ",90]
["United States","Microsoft Research",36,"58dc19a20e349c2a60000ae0","2017/3/29 21:39:9",2,2,"Funding priorities ","Simulating quantum systems","Increasing processing speed in specific applications","Enhancing machine learning","Having the ability to control quantum systems","Attacking and defending data security","Addressing optimization issues","Increasing energy efficiency of computing","Simulating classical complex systems","Other (as optionally specified in the first column)","My ratings reflect those I submitted for the other data- however I rank enhancing ML higher because if compelling applications for ML can be found for classical data the results could be transformative.","58dc19a20e349c2a60000ae0","2017-03-29T21:39:30",2,3,"Level of confidence ",100]
["Italy","Universita degli Studi di Milano- Dept. Comp. Sci.",51,"58dc29b80e349c2a60000d4c","2017/3/29 21:48:24",2,2,"Funding priorities ","Increasing energy efficiency of computing","Increasing processing speed in specific applications","Addressing optimization issues","Simulating classical complex systems","Simulating quantum systems","Enhancing machine learning","Having the ability to control quantum systems","Attacking and defending data security","Other (as optionally specified in the first column)",null,"58dc29b80e349c2a60000d4c","2017-03-29T21:48:36",2,3,"Level of confidence ",70]
["United States","Sandia National Labs",40,"58dc2de20e349c2a60000dda","2017/3/29 22:19:8",2,2,"Funding priorities ","Addressing optimization issues","Increasing energy efficiency of computing","Increasing processing speed in specific applications","Simulating classical complex systems","Having the ability to control quantum systems","Simulating quantum systems","Enhancing machine learning","Attacking and defending data security","Other (as optionally specified in the first column)",null,"58dc2de20e349c2a60000dda","2017-03-29T22:19:22",2,3,"Level of confidence ",0]
["Australia","University of Sydney",33,"58dc31340e349c2a60000e24","2017/3/29 23:20:36",2,2,"Funding priorities ","Addressing optimization issues","Simulating quantum systems","Increasing processing speed in specific applications","Simulating classical complex systems","Attacking and defending data security","Having the ability to control quantum systems","Enhancing machine learning","Increasing energy efficiency of computing","Other (as optionally specified in the first column)",null,"58dc31340e349c2a60000e24","2017-03-29T23:20:48",2,3,"Level of confidence ",75]
["Spain","Universitat Autonoma de Barcelona",47,"58dc3c050e349c2a60000f57","2017/4/14 18:1:9",2,2,"Funding priorities ","Simulating quantum systems","Addressing optimization issues","Having the ability to control quantum systems","Increasing energy efficiency of computing","Increasing processing speed in specific applications","Attacking and defending data security","Simulating classical complex systems","Enhancing machine learning","Other (as optionally specified in the first column)",null,"58dc3c050e349c2a60000f57","2017-04-14T18:01:44",2,3,"Level of confidence ",60]
["Colombia","ADAPTUN SAS",31,"58dc3f980e349c2a60000f93","2017/3/29 23:52:34",2,2,"Funding priorities ","Having the ability to control quantum systems","Attacking and defending data security","Enhancing machine learning","Simulating quantum systems","Simulating classical complex systems","Addressing optimization issues","Increasing energy efficiency of computing","Increasing processing speed in specific applications","Other (as optionally specified in the first column)",null,"58dc3f980e349c2a60000f93","2017-03-29T23:53:13",2,3,"Level of confidence ",84]
["Singapore","Centre for Quantum Technologies- National Universtiy of Singapore","40+","58dc8f390e349c2a6000135a","2017/5/12 3:34:47",2,2,"Funding priorities ","Simulating quantum systems","Addressing optimization issues","Increasing processing speed in specific applications","Having the ability to control quantum systems","Simulating classical complex systems","Attacking and defending data security","Enhancing machine learning","Increasing energy efficiency of computing","Other (as optionally specified in the first column)",null,"58dc8f390e349c2a6000135a","2017-05-12T03:35:00",2,3,"Level of confidence ",70]
["United Kingdom","University of Cambridge",38,"58dd39ba893db95b5c000583","2017/4/1 16:13:36",2,2,"Funding priorities ","Simulating quantum systems","Increasing processing speed in specific applications","Addressing optimization issues","Attacking and defending data security","Having the ability to control quantum systems","Simulating classical complex systems","Enhancing machine learning","Increasing energy efficiency of computing","Other (as optionally specified in the first column)",null,"58dd39ba893db95b5c000583","2017-04-01T16:13:41",2,3,"Level of confidence ",90]
["United Kingdom","University College London",74,"58de3f1a893db95b5c000cac","2017/3/31 12:35:47",2,2,"Funding priorities ","Attacking and defending data security","Simulating classical complex systems","Addressing optimization issues","Simulating quantum systems","Having the ability to control quantum systems","Increasing processing speed in specific applications","Increasing energy efficiency of computing","Enhancing machine learning","Other (as optionally specified in the first column)",null,"58de3f1a893db95b5c000cac","2017-03-31T12:36:14",2,3,"Level of confidence ",90]
["Austria","University of Innsbruck",36,"58ded299f2d9f720620004bb","2017/3/31 22:47:29",2,2,"Funding priorities ","Simulating quantum systems","Having the ability to control quantum systems","Increasing processing speed in specific applications","Addressing optimization issues","Enhancing machine learning","Simulating classical complex systems","Attacking and defending data security","Other (as optionally specified in the first column)","Increasing energy efficiency of computing",null,"58ded299f2d9f720620004bb","2017-03-31T22:47:44",2,3,"Level of confidence ",75]
["United Kingdom","Loughborough University",53,"58def721f2d9f72062000604","2017/4/24 11:15:49",2,2,"Funding priorities ","Addressing optimization issues","Simulating quantum systems","Increasing processing speed in specific applications","Having the ability to control quantum systems","Attacking and defending data security","Simulating classical complex systems","Enhancing machine learning","Increasing energy efficiency of computing","Other (as optionally specified in the first column)","please enter an explanation for your answer","58def721f2d9f72062000604","2017-04-24T11:16:06",2,3,"Level of confidence ",85,"please enter an explanation for your answer"]
["Canada","Anyon Systems Inc.",33,"58e1129318298df04d00003b","2017/5/5 15:52:32",2,2,"Funding priorities ","Simulating quantum systems","Having the ability to control quantum systems","Enhancing machine learning","Addressing optimization issues","Attacking and defending data security","Increasing energy efficiency of computing","Increasing processing speed in specific applications","Simulating classical complex systems","Other (as optionally specified in the first column)",null,"58e1129318298df04d00003b","2017-05-05T15:52:54",2,3,"Level of confidence ",80]
["Spain",null,42,"58e205ac6c7ae40b360001b9","2017/4/4 9:9:29",2,2,"Funding priorities ","Attacking and defending data security","Enhancing machine learning","Simulating classical complex systems","Increasing processing speed in specific applications","Simulating quantum systems","Addressing optimization issues","Increasing energy efficiency of computing","Having the ability to control quantum systems","Other (as optionally specified in the first column)","I think that most important priorities are security & ML or data management and processing in general. Because the impact is closer in time and quantum will give a good competitive advantage in these two fields (security & data processing including ML)","58e205ac6c7ae40b360001b9","2017-04-04T09:09:42",2,3,"Level of confidence ",90]
["Spain","Hitachi Cambridge Laboratory",31,"58e365947ceceb751a000797","2017/4/4 9:33:32",2,2,"Funding priorities ","Attacking and defending data security","Addressing optimization issues","Enhancing machine learning","Simulating quantum systems","Having the ability to control quantum systems","Increasing energy efficiency of computing","Increasing processing speed in specific applications","Simulating classical complex systems","Other (as optionally specified in the first column)","I am skeptical and believe that the major sources of funding for quantum computing will be military ans security related. This is cryptography.","58e365947ceceb751a000797","2017-04-04T09:30:03",2,3,"Level of confidence ",90]
["United Kingdom","Innovate UK",34,"58e368997ceceb751a0007ec","2017/4/10 15:29:47",2,2,"Funding priorities ","Addressing optimization issues","Increasing processing speed in specific applications","Enhancing machine learning","Attacking and defending data security","Increasing energy efficiency of computing","Simulating classical complex systems","Having the ability to control quantum systems","Simulating quantum systems","Other (as optionally specified in the first column)",null,"58e368997ceceb751a0007ec","2017-04-10T15:30:03",2,3,"Level of confidence ",60,"I believe that the whole community (not only myself) is quite uncertain of which applications will be useful. This needs further- focussed research to develop and test new algorithms."]
["Sweden","Chalmers University of Technology",39,"58e36a6b7ceceb751a000804","2017/5/12 15:14:17",2,2,"Funding priorities ","Addressing optimization issues","Having the ability to control quantum systems","Simulating quantum systems","Simulating classical complex systems","Enhancing machine learning","Attacking and defending data security","Increasing energy efficiency of computing","Increasing processing speed in specific applications","Other (as optionally specified in the first column)",null,"58e36a6b7ceceb751a000804","2017-05-12T15:14:45",2,3,"Level of confidence ",75]
["Netherlands","QuTech- TU Delft",32,"58e4d9e07b67cab57f0003f6","2017/4/5 11:55:37",2,2,"Funding priorities ","Simulating quantum systems","Having the ability to control quantum systems","Simulating classical complex systems","Addressing optimization issues","Attacking and defending data security","Enhancing machine learning","Increasing processing speed in specific applications","Increasing energy efficiency of computing","Other (as optionally specified in the first column)",null,"58e4d9e07b67cab57f0003f6","2017-04-05T11:58:00",2,3,"Level of confidence ",70]
["Germany","SAP",null,"58e4f37f7b67cab57f0004f2","2017/4/26 7:54:28",2,2,"Funding priorities ","Addressing optimization issues","Enhancing machine learning","Increasing energy efficiency of computing","Increasing processing speed in specific applications","Attacking and defending data security","Simulating classical complex systems","Having the ability to control quantum systems","Simulating quantum systems","Other (as optionally specified in the first column)",null,"58e4f37f7b67cab57f0004f2","2017-04-24T09:40:30",2,3,"Level of confidence ",60,"All reasons are important- however in different domains. For example simulating could be very useful for certain applications- and not ML for those; and reverse for others"]
["Germany","JGU Mainz",38,"58e5f495ca034e7c6b00026d","2017/4/24 8:45:57",2,2,"Funding priorities ","Addressing optimization issues","Increasing energy efficiency of computing","Increasing processing speed in specific applications","Simulating classical complex systems","Having the ability to control quantum systems","Simulating quantum systems","Enhancing machine learning","Attacking and defending data security","Other (as optionally specified in the first column)",null,"58e5f495ca034e7c6b00026d","2017-04-24T08:46:10",2,3,"Level of confidence ",90]
["United Kingdom",null,null,"58e73cc309b7a4df5b000377","2017/4/7 7:23:43",2,2,"Funding priorities ","Addressing optimization issues","Increasing energy efficiency of computing","Increasing processing speed in specific applications","Attacking and defending data security","Simulating quantum systems","Having the ability to control quantum systems","Enhancing machine learning","Simulating classical complex systems","Other (as optionally specified in the first column)",null,"58e73cc309b7a4df5b000377","2017-04-07T07:23:58",2,3,"Level of confidence ",60]
["United States","QxBranch",35,"58e7b1f709b7a4df5b000782","2017/4/7 15:40:27",2,2,"Funding priorities ","Enhancing machine learning","Increasing processing speed in specific applications","Simulating classical complex systems","Addressing optimization issues","Having the ability to control quantum systems","Simulating quantum systems","Attacking and defending data security","Increasing energy efficiency of computing","Other (as optionally specified in the first column)",null,"58e7b1f709b7a4df5b000782","2017-04-07T15:40:35",2,3,"Level of confidence ",80]
["United States","Intel Corporation",45,"58ece8f41f375cbb71000563","2017/4/11 14:48:56",2,2,"Funding priorities ","Enhancing machine learning","Addressing optimization issues","Increasing processing speed in specific applications","Simulating classical complex systems","Increasing energy efficiency of computing","Having the ability to control quantum systems","Simulating quantum systems","Attacking and defending data security","Other (as optionally specified in the first column)",null,"58ece8f41f375cbb71000563","2017-04-11T14:49:24",2,3,"Level of confidence ",90]
["United States","USC",49,"58f2bc26b46e82714e0000c2","2017/4/16 1:2:22",2,2,"Funding priorities ","Addressing optimization issues","Increasing energy efficiency of computing","Increasing processing speed in specific applications","Simulating classical complex systems","Having the ability to control quantum systems","Simulating quantum systems","Enhancing machine learning","Attacking and defending data security","Other (as optionally specified in the first column)",null,"58f2bc26b46e82714e0000c2","2017-04-16T01:02:33",2,3,"Level of confidence "]
["Netherlands","QuTech- TU Delft",44,"58f4e87313bb3df53300065c","2017/4/19 16:49:16",2,2,"Funding priorities ","Increasing processing speed in specific applications","Simulating quantum systems","Addressing optimization issues","Simulating classical complex systems","Enhancing machine learning","Having the ability to control quantum systems","Attacking and defending data security","Increasing energy efficiency of computing","Other (as optionally specified in the first column)",null,"58f4e87313bb3df53300065c","2017-04-19T16:49:28",2,3,"Level of confidence ",70]
["Australia","QxBranch",39,"58f597be16df98d816000218","2017/4/18 5:40:17",2,2,"Funding priorities ","Simulating quantum systems","Increasing processing speed in specific applications","Enhancing machine learning","Addressing optimization issues","Simulating classical complex systems","Attacking and defending data security","Increasing energy efficiency of computing","Having the ability to control quantum systems","Other (as optionally specified in the first column)",null,"58f597be16df98d816000218","2017-04-18T05:40:30",2,3,"Level of confidence ",50]
["United States","University Professor",null,"58f5a1be16df98d81600027f","2017/4/30 22:8:16",2,2,"Funding priorities ","Addressing optimization issues","Increasing energy efficiency of computing","Increasing processing speed in specific applications","Simulating classical complex systems","Having the ability to control quantum systems","Simulating quantum systems","Enhancing machine learning","Attacking and defending data security","Other (as optionally specified in the first column)",null,"58f5a1be16df98d81600027f","2017-04-30T22:08:26",2,3,"Level of confidence ",85]
["Sweden","Swedish Research Council",36,"58f5d64316df98d816000454","2017/4/18 9:12:16",2,2,"Funding priorities ","Increasing processing speed in specific applications","Having the ability to control quantum systems","Simulating quantum systems","Attacking and defending data security","Addressing optimization issues","Enhancing machine learning","Simulating classical complex systems","Increasing energy efficiency of computing","Other (as optionally specified in the first column)",null,"58f5d64316df98d816000454","2017-04-18T09:12:28",2,3,"Level of confidence ",30]
["Italy","Universita degli Studi di Napoli Federico II",42,"58f645e116df98d8160007d6","2017/4/18 17:30:5",2,2,"Funding priorities ","Enhancing machine learning","Addressing optimization issues","Simulating classical complex systems","Simulating quantum systems","Increasing energy efficiency of computing","Increasing processing speed in specific applications","Having the ability to control quantum systems","Attacking and defending data security","Other (as optionally specified in the first column)",null,"58f645e116df98d8160007d6","2017-04-18T17:30:36",2,3,"Level of confidence ",80]
["United States","Quantum AI Laboratory- NASA Ames Research Center ",34,"58f6466316df98d8160007e8","2017/4/20 1:35:10",2,2,"Funding priorities ","Enhancing machine learning","Addressing optimization issues","Increasing processing speed in specific applications","Simulating quantum systems","Having the ability to control quantum systems","Simulating classical complex systems","Attacking and defending data security","Increasing energy efficiency of computing","Other (as optionally specified in the first column)",null,"58f6466316df98d8160007e8","2017-04-20T01:35:18",2,3,"Level of confidence ",90]
["United States","SSH",57,"58f6477516df98d816000823","2017/4/18 17:25:50",2,2,"Funding priorities ","Addressing optimization issues","Attacking and defending data security","Enhancing machine learning","Increasing processing speed in specific applications","Simulating classical complex systems","Increasing energy efficiency of computing","Having the ability to control quantum systems","Simulating quantum systems","Other (as optionally specified in the first column)",null,"58f6477516df98d816000823","2017-04-18T17:26:20",2,3,"Level of confidence ",90]
["United States","MIT",56,"58f653ac16df98d816000a1a","2017/5/5 17:37:15",2,2,"Funding priorities ","Addressing optimization issues","Increasing energy efficiency of computing","Increasing processing speed in specific applications","Simulating classical complex systems","Having the ability to control quantum systems","Simulating quantum systems","Enhancing machine learning","Attacking and defending data security","Other (as optionally specified in the first column)",null,"58f653ac16df98d816000a1a","2017-05-05T17:37:31",2,3,"Level of confidence ",90]
["United Kingdom","University of Cambridge",54,"58f6541f16df98d816000a26","2017/4/18 18:9:55",2,2,"Funding priorities ","Increasing processing speed in specific applications","Addressing optimization issues","Attacking and defending data security","Simulating quantum systems","Having the ability to control quantum systems","Increasing energy efficiency of computing","Enhancing machine learning","Simulating classical complex systems","Other (as optionally specified in the first column)",null,"58f6541f16df98d816000a26","2017-04-18T18:10:33",2,3,"Level of confidence ",30]
[null,null,null,"58f6545b16df98d816000a30","2017/4/18 19:1:31",2,2,"Funding priorities ","Simulating quantum systems","Other (as optionally specified in the first column)","Increasing processing speed in specific applications","Having the ability to control quantum systems","Simulating classical complex systems","Attacking and defending data security","Increasing energy efficiency of computing","Addressing optimization issues","Enhancing machine learning",null,"58f6545b16df98d816000a30","2017-04-18T19:02:06",2,3,"Level of confidence ",80]
["Sweden","Stockholm University",44,"58f6573c16df98d816000b1e","2017/5/12 23:28:15",2,2,"Funding priorities ","Simulating quantum systems","Increasing processing speed in specific applications","Other (as optionally specified in the first column)","Enhancing machine learning","Attacking and defending data security","Addressing optimization issues","Having the ability to control quantum systems","Increasing energy efficiency of computing","Simulating classical complex systems",null,"58f6573c16df98d816000b1e","2017-05-12T23:28:26",2,3,"Level of confidence ",80]
["Finland","Aalto University",47,"58f667a816df98d816000dd3","2017/4/18 20:19:37",2,2,"Funding priorities ","Addressing optimization issues","Having the ability to control quantum systems","Increasing energy efficiency of computing","Simulating quantum systems","Enhancing machine learning","Increasing processing speed in specific applications","Simulating classical complex systems","Attacking and defending data security","Other (as optionally specified in the first column)",null,"58f667a816df98d816000dd3","2017-04-18T20:19:58",2,3,"Level of confidence ",80]
["United States","Google",44,"58f6727b16df98d816000ea3","2017/4/29 0:31:40",2,2,"Funding priorities ","Simulating quantum systems","Having the ability to control quantum systems","Enhancing machine learning","Increasing processing speed in specific applications","Addressing optimization issues","Increasing energy efficiency of computing","Simulating classical complex systems","Attacking and defending data security","Other (as optionally specified in the first column)",null,"58f6727b16df98d816000ea3","2017-04-29T00:31:52",2,3,"Level of confidence "]
["Israel","Hebrew University of Jerusalem",61,"58f6fd33d1c989b104000632","2017/4/19 6:25:46",2,2,"Funding priorities ","Having the ability to control quantum systems","Other (as optionally specified in the first column)","Increasing processing speed in specific applications","Simulating quantum systems","Enhancing machine learning","Addressing optimization issues","Increasing energy efficiency of computing","Simulating classical complex systems","Attacking and defending data security",null,"58f6fd33d1c989b104000632","2017-04-19T06:26:05",2,3,"Level of confidence ",90]
["France","Nokia Bell Labs",null,"58f7180cd1c989b1040007af","2017/4/20 10:27:17",2,2,"Funding priorities ","Addressing optimization issues","Increasing processing speed in specific applications","Simulating classical complex systems","Having the ability to control quantum systems","Simulating quantum systems","Enhancing machine learning","Attacking and defending data security","Other (as optionally specified in the first column)","Increasing energy efficiency of computing",null,"58f7180cd1c989b1040007af","2017-04-20T10:27:35",2,3,"Level of confidence ",20]
["Sweden","Swedish Research Council",59,"58f7520bd1c989b1040009ae","2017/4/19 12:8:57",2,2,"Funding priorities ","Attacking and defending data security","Addressing optimization issues","Increasing energy efficiency of computing","Enhancing machine learning","Having the ability to control quantum systems","Increasing processing speed in specific applications","Simulating classical complex systems","Simulating quantum systems","Other (as optionally specified in the first column)",null,"58f7520bd1c989b1040009ae","2017-04-19T12:08:59",2,3,"Level of confidence ",50]
["United Kingdom","UCL",36,"58f75bb2d1c989b104000a11","2017/4/19 14:38:9",2,2,"Funding priorities ","Increasing energy efficiency of computing","Simulating quantum systems","Addressing optimization issues","Enhancing machine learning","Having the ability to control quantum systems","Simulating classical complex systems","Attacking and defending data security","Increasing processing speed in specific applications","Other (as optionally specified in the first column)","Public funding should be directed towards applications with the greatest societal gain. Hence- applications in increasing energy efficiency and simulating quantums should be given high priority for public funding. \\n\\nApplications in optimization and machine learning have applications in business and finance- and are more appropriate for support by private investment / industry.\\n\\nHaving the ability to control quantum systems is important from a basic science perspective- and as a underpinning element of the other applications.","58f75bb2d1c989b104000a11","2017-04-19T14:38:19",2,3,"Level of confidence ",80]
["Sweden","stockholm university",65,"58f75f9cd1c989b104000a4c","2017/4/19 13:16:20",2,2,"Funding priorities ","Simulating quantum systems","Increasing processing speed in specific applications","Having the ability to control quantum systems","Enhancing machine learning","Addressing optimization issues","Attacking and defending data security","Simulating classical complex systems","Increasing energy efficiency of computing","Other (as optionally specified in the first column)",null,"58f75f9cd1c989b104000a4c","2017-04-19T13:16:32",2,3,"Level of confidence ",50]
["Germany","NMTC",53,"58f79331d1c989b104000ec6","2017/4/19 17:6:4",2,2,"Funding priorities ","Addressing optimization issues","Increasing energy efficiency of computing","Increasing processing speed in specific applications","Simulating classical complex systems","Having the ability to control quantum systems","Simulating quantum systems","Enhancing machine learning","Attacking and defending data security","Other (as optionally specified in the first column)",null,"58f79331d1c989b104000ec6","2017-04-19T17:06:23",2,3,"Level of confidence "]
["Italy","Politecnico di Milano",44,"58f8c58882c98b2370000893","2017/4/29 22:16:39",2,2,"Funding priorities ","Increasing processing speed in specific applications","Addressing optimization issues","Simulating quantum systems","Having the ability to control quantum systems","Other (as optionally specified in the first column)","Attacking and defending data security","Simulating classical complex systems","Enhancing machine learning","Increasing energy efficiency of computing",null,"58f8c58882c98b2370000893","2017-04-29T22:16:52",2,3,"Level of confidence ",50]
["France","CNRS- UPMC- ENS",71,"58f8e97182c98b2370000b0e","2017/5/5 17:10:13",2,2,"Funding priorities ","Simulating quantum systems","Simulating classical complex systems","Having the ability to control quantum systems","Increasing processing speed in specific applications","Attacking and defending data security","Addressing optimization issues","Enhancing machine learning","Increasing energy efficiency of computing","Other (as optionally specified in the first column)",null,"58f8e97182c98b2370000b0e","2017-05-05T17:10:33",2,3,"Level of confidence ",50]
["United Kingdom","None",46,"58fa4404dce69e9531000a61","2017/4/28 16:34:43",2,2,"Funding priorities ","Simulating quantum systems","Increasing processing speed in specific applications","Attacking and defending data security","Simulating classical complex systems","Having the ability to control quantum systems","Addressing optimization issues","Enhancing machine learning","Increasing energy efficiency of computing","Other (as optionally specified in the first column)",null,"58fa4404dce69e9531000a61","2017-04-28T16:35:10",2,3,"Level of confidence ",51,"My opinion is skewed by the kinds of things researchers talk to me about - which is a function of what they think the public is interested in"]
["Germany","ASML",54,"58ff77bc1647f8e45f00086a","2017/4/25 16:56:17",2,2,"Funding priorities ","Increasing processing speed in specific applications","Addressing optimization issues","Attacking and defending data security","Simulating classical complex systems","Enhancing machine learning","Simulating quantum systems","Having the ability to control quantum systems","Increasing energy efficiency of computing","Other (as optionally specified in the first column)",null,"58ff77bc1647f8e45f00086a","2017-04-25T16:56:41",2,3,"Level of confidence ",71]
["Finland","Aalto University",40,"5904f5b5b78ea63806000843","2017/4/29 20:51:41",2,2,"Funding priorities ","Attacking and defending data security","Having the ability to control quantum systems","Increasing processing speed in specific applications","Increasing energy efficiency of computing","Addressing optimization issues","Simulating classical complex systems","Simulating quantum systems","Enhancing machine learning","Other (as optionally specified in the first column)",null,"5904f5b5b78ea63806000843","2017-04-29T20:52:00",2,3,"Level of confidence "]
["Japan","The University of Tokyo",49,"5905508ce3cf73976b00018f","2017/4/30 4:28:24",2,2,"Funding priorities ","Simulating quantum systems","Having the ability to control quantum systems","Increasing processing speed in specific applications","Enhancing machine learning","Addressing optimization issues","Attacking and defending data security","Simulating classical complex systems","Increasing energy efficiency of computing","Other (as optionally specified in the first column)",null,"5905508ce3cf73976b00018f","2017-04-30T04:28:35",2,3,"Level of confidence ",60]
["Greece","Technical University of Crete",41,"5908d40785d9a7453b000824","2017/5/2 19:44:19",2,2,"Funding priorities ","Simulating quantum systems","Simulating classical complex systems","Addressing optimization issues","Increasing processing speed in specific applications","Having the ability to control quantum systems","Attacking and defending data security","Enhancing machine learning","Other (as optionally specified in the first column)","Increasing energy efficiency of computing",null,"5908d40785d9a7453b000824","2017-05-02T19:44:45",2,3,"Level of confidence ",95]
["Germany","RWTH Aachen University and Forschungszentrum Juelich",37,"590c94996e214ad4100007be","2017/5/5 15:18:4",2,2,"Funding priorities ","Increasing processing speed in specific applications","Addressing optimization issues","Simulating quantum systems","Enhancing machine learning","Simulating classical complex systems","Attacking and defending data security","Increasing energy efficiency of computing","Having the ability to control quantum systems","Other (as optionally specified in the first column)"]
["Hungary","Wigner Research Centre for Physics",39,"590cc7306e214ad410000add","2017/5/5 20:36:2",2,2,"Funding priorities ","Addressing optimization issues","Increasing processing speed in specific applications","Simulating classical complex systems","Simulating quantum systems","Other (as optionally specified in the first column)","Having the ability to control quantum systems","Attacking and defending data security","Enhancing machine learning","Increasing energy efficiency of computing",null,"590cc7306e214ad410000add","2017-05-05T20:36:16",2,3,"Level of confidence ",70]
["Finland","Aalto University",59,"590dd8d776c6fbf97c000472","2017/5/6 20:22:1",2,2,"Funding priorities ","Simulating quantum systems","Increasing processing speed in specific applications","Increasing energy efficiency of computing","Having the ability to control quantum systems","Addressing optimization issues","Simulating classical complex systems","Enhancing machine learning","Attacking and defending data security","Other (as optionally specified in the first column)",null,"590dd8d776c6fbf97c000472","2017-05-06T20:22:21",2,3,"Level of confidence ",60]
["Italy","LFoundry s.r.l.",55,"5910260330ff4fca44000249","2017/5/8 8:11:42",2,2,"Funding priorities ","Attacking and defending data security","Increasing processing speed in specific applications","Increasing energy efficiency of computing","Enhancing machine learning","Simulating classical complex systems","Having the ability to control quantum systems","Addressing optimization issues","Simulating quantum systems","Other (as optionally specified in the first column)",null,"5910260330ff4fca44000249","2017-05-08T08:12:00",2,3,"Level of confidence ",40]
["United Kingdom","Cardiff University",45,"5910a43930ff4fca44000627","2017/5/8 20:0:8",2,2,"Funding priorities ","Having the ability to control quantum systems","Simulating quantum systems","Other (as optionally specified in the first column)","Enhancing machine learning","Increasing energy efficiency of computing","Addressing optimization issues","Increasing processing speed in specific applications","Simulating classical complex systems","Attacking and defending data security",null,"5910a43930ff4fca44000627","2017-05-08T20:00:28",2,3,"Level of confidence ",90]
["Netherlands","Director at QuTech",42,"5911d11356953dae2b0004fb","2017/5/9 15:54:25",2,2,"Funding priorities ","Attacking and defending data security","Addressing optimization issues","Enhancing machine learning","Simulating quantum systems","Increasing processing speed in specific applications","Having the ability to control quantum systems","Simulating classical complex systems","Increasing energy efficiency of computing","Other (as optionally specified in the first column)",null,"5911d11356953dae2b0004fb","2017-05-09T15:54:40",2,3,"Level of confidence ",50]
["Netherlands","Delft University of Technology",24,"5911da0c56953dae2b0005a7","2017/5/9 15:24:41",2,2,"Funding priorities ","Addressing optimization issues","Having the ability to control quantum systems","Enhancing machine learning","Attacking and defending data security","Increasing processing speed in specific applications","Simulating classical complex systems","Simulating quantum systems","Increasing energy efficiency of computing","Other (as optionally specified in the first column)",null,"5911da0c56953dae2b0005a7","2017-05-09T15:25:03",2,3,"Level of confidence ",70]
["Netherlands","QuTech- TU Delft",25,"5911e10256953dae2b00079d","2017/5/9 16:12:17",2,2,"Funding priorities ","Simulating classical complex systems","Attacking and defending data security","Having the ability to control quantum systems","Simulating quantum systems","Addressing optimization issues","Enhancing machine learning","Increasing processing speed in specific applications","Increasing energy efficiency of computing","Other (as optionally specified in the first column)",null,"5911e10256953dae2b00079d","2017-05-09T16:12:47",2,3,"Level of confidence ",80]
["Netherlands","QuTech TUDelft",36,"5912009156953dae2b000b30","2017/5/9 18:11:27",2,2,"Funding priorities ","Enhancing machine learning","Increasing processing speed in specific applications","Simulating quantum systems","Addressing optimization issues","Other (as optionally specified in the first column)","Simulating classical complex systems","Having the ability to control quantum systems","Increasing energy efficiency of computing","Attacking and defending data security",null,"5912009156953dae2b000b30","2017-05-09T18:11:50",2,3,"Level of confidence ",70]
["Netherlands","TNO",41,"5912ade8bdf6d44f18000295","2017/5/10 6:53:47",2,2,"Funding priorities ","Other (as optionally specified in the first column)","Simulating classical complex systems","Increasing energy efficiency of computing","Increasing processing speed in specific applications","Enhancing machine learning","Attacking and defending data security","Having the ability to control quantum systems","Simulating quantum systems","Addressing optimization issues","They need to be able to tackle real-live problems such as cancer- etc...","5912a264bdf6d44f1800025f","2017-05-10T05:24:36",2,3,"Level of confidence ",80]
["Netherlands","TU Delft",33,"5912c704bdf6d44f18000402","2017/5/10 8:20:15",2,2,"Funding priorities ","Simulating quantum systems","Simulating classical complex systems","Addressing optimization issues","Increasing processing speed in specific applications","Having the ability to control quantum systems","Enhancing machine learning","Attacking and defending data security","Increasing energy efficiency of computing","Other (as optionally specified in the first column)",null,"5912ade8bdf6d44f18000295","2017-05-10T06:54:00",2,3,"Level of confidence ",100]
["Netherlands","Delft University of Technology",26,"5912ebe1bdf6d44f1800061b","2017/5/10 10:38:35",2,2,"Funding priorities ","Having the ability to control quantum systems","Simulating quantum systems","Increasing processing speed in specific applications","Increasing energy efficiency of computing","Addressing optimization issues","Simulating classical complex systems","Enhancing machine learning","Attacking and defending data security","Other (as optionally specified in the first column)",null,"5912c704bdf6d44f18000402","2017-05-10T08:20:35",2,3,"Level of confidence ",60]
["United Kingdom","University of Sussex",23,"5912f6e7bdf6d44f18000711","2017/5/10 12:13:22",2,2,"Funding priorities ","Simulating quantum systems","Addressing optimization issues","Increasing processing speed in specific applications","Enhancing machine learning","Having the ability to control quantum systems","Simulating classical complex systems","Attacking and defending data security","Increasing energy efficiency of computing","Other (as optionally specified in the first column)",null,"5912ebe1bdf6d44f1800061b","2017-05-10T10:38:56",2,3,"Level of confidence ",60]
["United Kingdom","Heriot-Watt University",44,"59130103bdf6d44f180007b7","2017/5/10 14:10:38",2,2,"Funding priorities ","Increasing energy efficiency of computing","Addressing optimization issues","Simulating classical complex systems","Attacking and defending data security","Enhancing machine learning","Increasing processing speed in specific applications","Having the ability to control quantum systems","Simulating quantum systems","Other (as optionally specified in the first column)",null,"59130103bdf6d44f180007b7","2017-05-10T14:11:14",2,3,"Level of confidence ",90]
["Italy","Universita degli Studi di Parma",41,"59130171bdf6d44f180007ce","2017/5/10 12:55:21",2,2,"Funding priorities ","Attacking and defending data security","Increasing processing speed in specific applications","Addressing optimization issues","Simulating quantum systems","Increasing energy efficiency of computing","Having the ability to control quantum systems","Enhancing machine learning","Simulating classical complex systems","Other (as optionally specified in the first column)",null,"59130171bdf6d44f180007ce","2017-05-10T12:56:03",2,3,"Level of confidence ",70]
["United Kingdom","University of Sussex",34,"59130171bdf6d44f180007d2","2017/5/10 12:8:14",2,2,"Funding priorities ","Simulating quantum systems","Attacking and defending data security","Enhancing machine learning","Addressing optimization issues","Increasing processing speed in specific applications","Simulating classical complex systems","Having the ability to control quantum systems","Increasing energy efficiency of computing","Other (as optionally specified in the first column)",null,"59130171bdf6d44f180007d2","2017-05-10T12:08:58",2,3,"Level of confidence ",65]
["Switzerland","ETH Zurich",27,"59130228bdf6d44f1800080e","2017/5/10 12:37:7",2,2,"Funding priorities ","Having the ability to control quantum systems","Increasing energy efficiency of computing","Addressing optimization issues","Enhancing machine learning","Simulating classical complex systems","Simulating quantum systems","Increasing processing speed in specific applications","Attacking and defending data security","Other (as optionally specified in the first column)",null,"59130228bdf6d44f1800080e","2017-05-10T12:37:44",2,3,"Level of confidence ",90]
["Greece","Universitat Autonoma de Barcelona",36,"59130582bdf6d44f180008ea","2017/5/10 14:6:26",2,2,"Funding priorities ","Having the ability to control quantum systems","Simulating quantum systems","Simulating classical complex systems","Increasing energy efficiency of computing","Other (as optionally specified in the first column)","Enhancing machine learning","Attacking and defending data security","Addressing optimization issues","Increasing processing speed in specific applications","Whilst a theorist- my objective view is that if we wish to fund three things that we can be sure will directly affect the public in the years to come then it is a no brainer.  Better ability to control quantum systems- which would lead to our ability to simulate quantum and complex classical systems of larger and larger size. ","59130582bdf6d44f180008ea","2017-05-10T14:06:59",2,3,"Level of confidence ",100,"Being involved in academia within europe for the past 5 years- and being involved in many conferences and discussions with experts in the field I am confident of the reasons and priorities I have indicated.  I can be selfish and ask to prioritise more theoretical and fundamental research which is what i do.  Whilst i do wish that more fundamental research is funded- as a European taxpayer- I think our wisest investment for the betterment of our society is to prioritise in the areas indicated."]
["United Kingdom","University of Sheffield",54,"5913069abdf6d44f1800091a","2017/5/10 12:50:44",2,2,"Funding priorities ","Having the ability to control quantum systems","Addressing optimization issues","Increasing energy efficiency of computing","Increasing processing speed in specific applications","Simulating quantum systems","Enhancing machine learning","Attacking and defending data security","Simulating classical complex systems","Other (as optionally specified in the first column)",null,"5913069abdf6d44f1800091a","2017-05-10T12:51:22",2,3,"Level of confidence ",60]
[null,"HHU Duesseldorf",22,"5913085abdf6d44f1800096f","2017/5/10 15:16:52",2,2,"Funding priorities ","Addressing optimization issues","Simulating classical complex systems","Attacking and defending data security","Enhancing machine learning","Simulating quantum systems","Increasing processing speed in specific applications","Increasing energy efficiency of computing","Having the ability to control quantum systems","Other (as optionally specified in the first column)",null,"5913085abdf6d44f1800096f","2017-05-10T15:17:26",2,3,"Level of confidence ",70]
["Switzerland","ETH Zurich",33,"59130b85bdf6d44f18000a6c","2017/5/10 12:48:14",2,2,"Funding priorities ","Simulating quantum systems","Having the ability to control quantum systems","Attacking and defending data security","Addressing optimization issues","Increasing processing speed in specific applications","Simulating classical complex systems","Enhancing machine learning","Other (as optionally specified in the first column)","Increasing energy efficiency of computing",null,"59130b85bdf6d44f18000a6c","2017-05-10T12:49:04",2,3,"Level of confidence ",100]
["United Kingdom","University of Strathclyde",37,"59130bdcbdf6d44f18000a81","2017/5/10 13:14:0",2,2,"Funding priorities ","Having the ability to control quantum systems","Increasing processing speed in specific applications","Simulating quantum systems","Simulating classical complex systems","Attacking and defending data security","Enhancing machine learning","Increasing energy efficiency of computing","Other (as optionally specified in the first column)","Addressing optimization issues",null,"59130bdcbdf6d44f18000a81","2017-05-10T13:14:37",2,3,"Level of confidence ",100]
["France","Aix-Marseille Universite",38,"59130e6ebdf6d44f18000b39","2017/5/10 13:25:59",2,2,"Funding priorities ","Simulating quantum systems","Increasing energy efficiency of computing","Addressing optimization issues","Increasing processing speed in specific applications","Simulating classical complex systems","Having the ability to control quantum systems","Enhancing machine learning","Attacking and defending data security","Other (as optionally specified in the first column)",null,"59130e6ebdf6d44f18000b39","2017-05-10T13:26:27",2,3,"Level of confidence ",80]
["Germany","Leibniz University Hannover",35,"59130fd9bdf6d44f18000b85","2017/5/10 13:36:1",2,2,"Funding priorities ","Simulating quantum systems","Other (as optionally specified in the first column)","Increasing energy efficiency of computing","Increasing processing speed in specific applications","Attacking and defending data security","Addressing optimization issues","Simulating classical complex systems","Having the ability to control quantum systems","Enhancing machine learning",null,"59130fd9bdf6d44f18000b85","2017-05-10T13:37:00",2,3,"Level of confidence ",50]
["Germany","University of Siegen",null,"5913126dbdf6d44f18000c48","2017/5/10 13:24:3",2,2,"Funding priorities ","Having the ability to control quantum systems","Simulating quantum systems","Increasing processing speed in specific applications","Increasing energy efficiency of computing","Simulating classical complex systems","Enhancing machine learning","Attacking and defending data security","Addressing optimization issues","Other (as optionally specified in the first column)",null,"5913126dbdf6d44f18000c48","2017-05-10T13:24:19",2,3,"Level of confidence ",70]
["United Kingdom","Imperial College",25,"59132a29bdf6d44f18000fc4","2017/5/10 15:50:17",2,2,"Funding priorities ","Simulating quantum systems","Having the ability to control quantum systems","Increasing processing speed in specific applications","Simulating classical complex systems","Enhancing machine learning","Addressing optimization issues","Attacking and defending data security","Other (as optionally specified in the first column)","Increasing energy efficiency of computing",null,"59132a29bdf6d44f18000fc4","2017-05-10T15:50:54",2,3,"Level of confidence ",60]
["Sweden","Chalmers University of Technology",26,"5913342bbdf6d44f18001106","2017/5/10 15:47:13",2,2,"Funding priorities ","Simulating quantum systems","Simulating classical complex systems","Enhancing machine learning","Addressing optimization issues","Having the ability to control quantum systems","Increasing processing speed in specific applications","Increasing energy efficiency of computing","Attacking and defending data security","Other (as optionally specified in the first column)",null,"5913342bbdf6d44f18001106","2017-05-10T15:47:54",2,3,"Level of confidence ",50]
["United Kingdom","University of Sussex",33,"59134dbebdf6d44f1800133e","2017/5/10 17:55:30",2,2,"Funding priorities ","Attacking and defending data security","Addressing optimization issues","Increasing processing speed in specific applications","Increasing energy efficiency of computing","Enhancing machine learning","Simulating classical complex systems","Simulating quantum systems","Having the ability to control quantum systems","Other (as optionally specified in the first column)","I would predict strong interest from public funding bodies where there is a UK strategic interest (eg defence and security) and where there is likely to be more nearer-term payoffs- ie the low hanging fruit.","59134dbebdf6d44f1800133e","2017-05-10T17:56:15",2,3,"Level of confidence ",50,"More confident in the \\Main reasons\\\" answer because of my own motivation to achieve successes in areas that can offer significant benefit to people's lives through medicine or technology- over any timeframe.\\nBit less confident in the \\\"Funding priorities\\\" answer because this will be decided by others with more political agendas I suspect.\""]
["Netherlands","QuTech",40,"591358f8bdf6d44f1800142a","2017/5/10 18:53:30",2,2,"Funding priorities ","Increasing processing speed in specific applications","Attacking and defending data security","Simulating quantum systems","Addressing optimization issues","Simulating classical complex systems","Having the ability to control quantum systems","Enhancing machine learning","Other (as optionally specified in the first column)","Increasing energy efficiency of computing",null,"591358f8bdf6d44f1800142a","2017-05-10T18:53:58",2,3,"Level of confidence ",80]
["Switzerland","University of Geneva",49,"59141c947284506612000337","2017/5/11 8:58:43",2,2,"Funding priorities ","Simulating quantum systems","Simulating classical complex systems","Addressing optimization issues","Increasing processing speed in specific applications","Having the ability to control quantum systems","Attacking and defending data security","Enhancing machine learning","Increasing energy efficiency of computing","Other (as optionally specified in the first column)","It is not clear that quantum computers can defend data security- on the other hand the mere threat that they could break security is already there. It is not clear that there is a commercial interest in cracking security but defending against their attacks is critical and has been for some time.","59141c947284506612000337","2017-05-11T08:59:08",2,3,"Level of confidence ",75]
["Germany","Universitaet Siegen",29,"59145ede7284506612000625","2017/5/11 13:5:0",2,2,"Funding priorities ","Increasing processing speed in specific applications","Enhancing machine learning","Addressing optimization issues","Having the ability to control quantum systems","Increasing energy efficiency of computing","Attacking and defending data security","Simulating quantum systems","Simulating classical complex systems","Other (as optionally specified in the first column)",null,"59145ede7284506612000625","2017-05-11T13:05:50",2,3,"Level of confidence ",80]
["Finland","University of Turku",43,"591463e0728450661200066e","2017/5/11 13:40:12",2,2,"Funding priorities ","Simulating quantum systems","Increasing processing speed in specific applications","Enhancing machine learning","Addressing optimization issues","Attacking and defending data security","Simulating classical complex systems","Having the ability to control quantum systems","Other (as optionally specified in the first column)","Increasing energy efficiency of computing",null,"591463e0728450661200066e","2017-05-11T13:40:36",2,3,"Level of confidence ",90]
["Greece","Democritus University of Thrace",57,"5914aca27284506612000968","2017/5/11 19:28:12",2,2,"Funding priorities ","Simulating quantum systems","Attacking and defending data security","Addressing optimization issues","Simulating classical complex systems","Having the ability to control quantum systems","Increasing processing speed in specific applications","Enhancing machine learning","Increasing energy efficiency of computing","Other (as optionally specified in the first column)",null,"5914aca27284506612000968","2017-05-11T19:28:45",2,3,"Level of confidence ",80]
["Switzerland","ETH Zurich",29,"5915606c3b6627457c000516","2017/5/12 7:36:45",2,2,"Funding priorities ","Simulating quantum systems","Having the ability to control quantum systems","Attacking and defending data security","Simulating classical complex systems","Increasing processing speed in specific applications","Enhancing machine learning","Addressing optimization issues","Increasing energy efficiency of computing","Other (as optionally specified in the first column)",null,"5915606c3b6627457c000516","2017-05-12T07:37:05",2,3,"Level of confidence ",60]
["Canada","ETH Zurich",21,"59156ba73b6627457c0005de","2017/5/12 8:34:11",2,2,"Funding priorities ","Attacking and defending data security","Addressing optimization issues","Enhancing machine learning","Simulating classical complex systems","Simulating quantum systems","Having the ability to control quantum systems","Increasing processing speed in specific applications","Increasing energy efficiency of computing","Other (as optionally specified in the first column)",null,"59156ba73b6627457c0005de","2017-05-12T08:34:29",2,3,"Level of confidence ",70]
["Netherlands","QuTech- TU Delft",40,"5915981e3b6627457c0007e7","2017/5/12 11:13:55",2,2,"Funding priorities ","Attacking and defending data security","Other (as optionally specified in the first column)","Addressing optimization issues","Increasing energy efficiency of computing","Increasing processing speed in specific applications","Simulating classical complex systems","Having the ability to control quantum systems","Simulating quantum systems","Enhancing machine learning",null,"5915981e3b6627457c0007e7","2017-05-12T11:14:04",2,3,"Level of confidence ",100]
["Estonia","ETH Zurich",28,"5915e2573b6627457c000bb7","2017/5/12 16:56:37",2,2,"Funding priorities ","Simulating quantum systems","Having the ability to control quantum systems","Increasing energy efficiency of computing","Addressing optimization issues","Increasing processing speed in specific applications","Simulating classical complex systems","Enhancing machine learning","Attacking and defending data security","Other (as optionally specified in the first column)",null,"5915e2573b6627457c000bb7","2017-05-12T16:57:10",2,3,"Level of confidence ",60]
["Spain","University of the Basque Country",53,"5916d8b05d9b3ef7710004cc","2017/5/13 11:8:7",2,2,"Funding priorities ","Simulating classical complex systems","Simulating quantum systems","Addressing optimization issues","Increasing processing speed in specific applications","Enhancing machine learning","Having the ability to control quantum systems","Increasing energy efficiency of computing","Attacking and defending data security","Other (as optionally specified in the first column)",null,"5916d8b05d9b3ef7710004cc","2017-05-13T11:08:34",2,3,"Level of confidence ",100]
["Japan","Kindai University",64,"591818c39314c36f68000506","2017/5/14 8:54:12",2,2,"Funding priorities ","Addressing optimization issues","Increasing processing speed in specific applications","Increasing energy efficiency of computing","Having the ability to control quantum systems","Simulating quantum systems","Enhancing machine learning","Attacking and defending data security","Simulating classical complex systems","Other (as optionally specified in the first column)"]
["United Kingdom","University of Sussex",30,"591957ef7f8ed816520001da","2017/5/15 7:36:6",2,2,"Funding priorities ","Addressing optimization issues","Increasing energy efficiency of computing","Increasing processing speed in specific applications","Simulating classical complex systems","Having the ability to control quantum systems","Simulating quantum systems","Enhancing machine learning","Attacking and defending data security","Other (as optionally specified in the first column)",null,"591957ef7f8ed816520001da","2017-05-15T07:36:39",2,3,"Level of confidence ",80]
[]
[]
[]
[]
[]
[]
[]
[]
[]
[]
[]
[]
[]
[]
[]
[]
[]
[]
[]
[]
[null,null,null,null,null,null,null,"No of responses",{"$f":"COUNT(I2:I127)","v":0},0,0,0,0,0,0,0,0]

{"sheet":"Charting","index":1,"n_rows":28,"n_cols":12,"rows_kept":28,"cut":false,"hidden":false,"merged":[]}
["Unweighted scores","Addressing optimization issues","Increasing processing speed in specific applications","Simulating quantum systems","Having the ability to control quantum systems","Attacking and defending data security","Enhancing machine learning","Increasing energy efficiency of computing","Simulating classical complex systems","Other",null,"Checksum"]
["Highest priority",0.25619834710743805,7.43801652892562E-2,0.29752066115702469,0.12396694214876033,0.14049586776859505,4.9586776859504134E-2,2.4793388429752067E-2,2.4793388429752067E-2,8.2644628099173556E-3,{"$f":"COUNTA(Foglio1!F:F)-1","v":121},{"$f":"SUM(B2:J2)","v":1}]
["Priority 2",0.16528925619834711,0.25619834710743805,0.10743801652892562,0.13223140495867769,6.6115702479338845E-2,4.1322314049586778E-2,0.11570247933884298,8.2644628099173556E-2,3.3057851239669422E-2,"Number of categories",0.99999999999999989]
["Priority 3",0.17355371900826447,0.24793388429752067,0.1487603305785124,4.1322314049586778E-2,5.7851239669421489E-2,0.15702479338842976,8.2644628099173556E-2,7.43801652892562E-2,1.6528925619834711E-2,{"$f":"COUNTA(B1:J1)","v":9},1]
["Priority 4",0.13223140495867769,0.1487603305785124,0.11570247933884298,9.0909090909090912E-2,5.7851239669421489E-2,0.13223140495867769,0.10743801652892562,0.20661157024793389,8.2644628099173556E-3,"Total of confidences",1]
["Priority 5",0.11570247933884298,8.2644628099173556E-2,8.2644628099173556E-2,0.27272727272727271,0.10743801652892562,9.9173553719008267E-2,6.6115702479338845E-2,0.13223140495867769,4.1322314049586778E-2,{"$f":"SUM(Foglio1!X2:X1000)","v":8166},0.99999999999999989]
["Priority 6",8.2644628099173556E-2,9.0909090909090912E-2,0.14049586776859505,0.1487603305785124,0.13223140495867769,0.13223140495867769,9.0909090909090912E-2,0.18181818181818182,null,null,1]
["Priority 7",2.4793388429752067E-2,6.6115702479338845E-2,4.1322314049586778E-2,0.11570247933884298,0.15702479338842976,0.29752066115702469,0.12396694214876033,0.17355371900826447,null,null,0.99999999999999989]
["Priority 8",2.4793388429752067E-2,2.4793388429752067E-2,6.6115702479338845E-2,7.43801652892562E-2,0.24793388429752067,6.6115702479338845E-2,0.30578512396694202,0.10743801652892562,8.2644628099173556E-2,null,0.99999999999999978]
["Lowest priority",2.4793388429752067E-2,8.2644628099173556E-3,null,null,3.3057851239669422E-2,2.4793388429752067E-2,8.2644628099173556E-2,1.6528925619834711E-2,0.80991735537189902,null,0.99999999999999822]
[]
[]
[]
["Weighted by confidence","Addressing optimization issues","Increasing processing speed in specific applications","Simulating quantum systems","Having the ability to control quantum systems","Attacking and defending data security","Enhancing machine learning","Increasing energy efficiency of computing","Simulating classical complex systems","Other"]
["Highest priority",0.22654910604947343,6.1351947097722272E-2,0.30259613029635074,0.14621601763409259,0.12858192505510657,6.1229488121479304E-2,2.9390154298310066E-2,3.4288513348028404E-2,9.7967180994366892E-3,null,{"$f":"SUM(B15:J15)","v":1}]
["Priority 2",0.14707323046779328,0.2523879500367377,0.13225569434239529,0.11511143766838106,7.580210629439138E-2,5.0208180259613037E-2,9.4905706588292935E-2,9.306882194464855E-2,3.918687239774675E-2,null,0.99999999999999989]
["Priority 3",0.21430320842517758,0.21920156747489591,0.14266470732304679,3.9186872397746757E-2,5.7800636786676469E-2,0.1554004408523145,6.6127847171197657E-2,8.4496693607641449E-2,2.0818025961302965E-2,null,1.0000000000000002]
["Priority 4",0.14450159196669116,0.16654420769042369,0.12417340191036004,8.633357825128582E-2,5.8780308596620132E-2,0.12858192505510654,9.184423218221896E-2,0.189444036247857,9.7967180994366892E-3,null,1]
["Priority 5",9.6742591231937292E-2,8.143521920156746E-2,7.5924565270634348E-2,0.27014450159196668,0.11756061719324028,0.11400930688219446,7.3475385745775168E-2,0.12294881214793046,4.7759000734753851E-2,null,0.99999999999999989]
["Priority 6",9.1231937301004165E-2,9.6742591231937305E-2,0.11707078128826845,0.15368601518491307,0.13286798922361009,0.1310311045799657,9.306882194464855E-2,0.18430075924565273,null,null,1]
["Priority 7",2.3267205486162137E-2,8.0822924320352679E-2,3.5513103110458001E-2,0.12931667891256429,0.15735978447220181,0.2762674504041146,0.13580700465344112,0.16164584864070533,null,null,0.99999999999999989]
["Priority 8",3.0614744060739649E-2,2.9267695322067112E-2,6.9801616458486412E-2,6.0004898359049708E-2,0.22838599069311782,5.5106539309331369E-2,0.32721038452118539,0.11021307861866275,8.939505265735978E-2,null,1]
["Lowest priority",2.5716385011021307E-2,1.224589762429586E-2,null,null,4.2860641685035512E-2,2.8165564535880479E-2,8.8170462894930204E-2,1.9593436198873378E-2,0.78324761204996352,null,1.0000000000000002]
[]
[]
["Exact text used in Foglio1","Addressing optimization issues","Increasing processing speed in specific applications","Simulating quantum systems","Having the ability to control quantum systems","Attacking and defending data security","Enhancing machine learning","Increasing energy efficiency of computing","Simulating classical complex systems","Other (as optionally specified in the first column)"]
["Checksum",{"$f":"SUM(B2:B10)","v":1},1,0.99999999999999989,1,1,0.99999999999999989,1,1,0.99999999999999822]
["Checksum",{"$f":"SUM(B15:B23)","v":1},{"$f":"SUM(C15:C23)","v":0.99999999999999989},1.0000000000000002,1,1,1,1,0.99999999999999989,1.0000000000000002]